bitfinex/quotes_ETHUSD_20251111
["timestamp","ask_amount","ask_price","bid_price","bid_amount"]
[1762832758164,9.48002845,3605.0,3604.9,0.002]
[1762832758469,9.94082845,3605.0,3604.9,0.002]
[1762832759853,9.19938519,3605.0,3604.9,0.002]
[1762832760427,10.18833319,3605.0,3604.9,0.002]
[1762832760819,9.19938519,3605.0,3604.9,0.002]
[1762832762522,11.09383719,3605.0,3604.9,0.002]
[1762832762854,11.5901238,3605.0,3604.9,0.002]
[1762832763374,10.10488919,3605.0,3604.9,0.002]
[1762832763943,11.7381987,3605.0,3602.8,0.1012]
[1762832764158,3.6436628,3603.8,3602.8,0.1012]
[1762832764546,0.1807,3603.7,3602.8,0.1012]
[1762832764732,2.77501248,3603.6,3602.8,0.1012]
[1762832764975,2.95566122,3603.7,3602.8,0.1012]
[1762832765243,2.77505727,3603.6,3602.8,0.1012]
[1762832765460,2.77518207,3603.4,3602.8,0.1012]
[1762832766049,2.77509339,3603.5,3602.8,0.1012]
[1762832766231,0.4608,3603.6,3602.8,0.1012]
[1762832766658,0.1807,3604.3,3603.5,0.3352]
[1762832766830,0.1807,3604.3,3603.6,0.3352]
[1762832766831,2.77454081,3604.2,3603.6,0.3352]
[1762832767033,1.901212,3604.7,3603.6,0.3352]
[1762832767260,1.24438147,3604.6,3603.6,0.3352]
[1762832767556,4.03410781,3604.4,3603.6,0.6704]
[1762832767852,0.7397756,3605.1,3603.6,0.6704]
[1762832768034,0.7397756,3605.1,3603.1,7.07303082]
[1762832768035,2.77423782,3604.6,3603.7,0.3352]
[1762832768232,2.77431607,3604.5,3603.5,2.77506564]
[1762832768436,2.77432478,3604.5,3603.5,2.77506564]
[1762832768662,2.77432478,3604.5,3603.5,3.11026564]
[1762832768962,2.77462211,3604.1,3603.1,3.76453317]
[1762832769259,3.23547242,3604.1,3603.1,3.42932151]
[1762832769451,2.77470573,3604.0,3603.1,3.42932151]
[1762832769760,3.23543268,3604.1,3603.2,2.77529887]
[1762832769968,3.23543268,3604.1,3603.1,3.42933157]
[1762832770161,2.77471921,3604.0,3603.1,0.654]
[1762832770463,3.23542692,3604.1,3603.1,0.654]
[1762832770666,0.4608,3604.1,3603.1,0.654]
[1762832770864,0.4608,3604.7,3604.0,0.3352]
[1762832771082,0.654,3604.5,3603.2,0.3352]
[1762832771287,0.77090071,3604.9,3603.2,0.3352]
[1762832771288,0.4608,3604.6,3603.2,3.11048533]
[1762832771468,0.4608,3604.5,3603.2,0.3352]
[1762832771782,2.77438686,3604.4,3603.4,2.77512204]
[1762832771982,0.1807,3604.9,3603.2,0.405504]
[1762832772279,2.77424946,3604.6,3603.7,2.7749113]
[1762832772440,2.77423292,3604.6,3603.6,2.77498403]
[1762832772777,2.77415811,3604.7,3603.7,3.11011064]
[1762832773159,2.77415811,3604.7,3603.8,0.3352]
[1762832773376,0.654,3604.8,3603.9,2.77477177]
[1762832773574,0.1807,3604.9,3604.0,0.3352]
[1762832773779,2.77364528,3605.4,3604.8,0.4334]
[1762832773945,0.59099433,3605.3,3604.8,0.4334]
[1762832774295,0.001,3605.7,3604.8,0.4334]
[1762832774492,0.001,3605.7,3605.2,0.3352]
[1762832774493,3.36561424,3605.7,3605.2,0.3352]
[1762832774699,2.77439567,3605.7,3605.2,0.3352]
[1762832774908,0.001,3605.7,3605.2,0.3352]
[1762832775240,0.001,3605.7,3604.8,0.0982]
[1762832775588,3.23519414,3605.7,3604.8,0.0982]
[1762832775787,0.001,3605.7,3604.9,0.3352]
[1762832775956,0.001,3605.7,3605.0,2.77390769]
[1762832776575,0.001,3605.7,3604.9,0.3352]
[1762832776804,0.001,3605.7,3604.9,0.36294002]
[1762832777101,0.001,3605.7,3604.9,0.3352]
[1762832777491,0.001,3605.7,3605.0,2.7739251]
[1762832777819,0.001,3605.7,3604.9,3.10919491]
[1762832777963,0.001,3605.7,3605.6,0.3352]
[1762832778502,0.001,3605.7,3605.6,0.6704]
[1762832778923,0.001,3605.7,3605.6,3.4438635]
[1762832779074,0.001,3605.7,3605.6,0.6704]
[1762832779409,0.001,3605.7,3605.6,0.3352]
[1762832780201,0.001,3605.7,3605.6,3.4438635]
[1762832780892,0.001,3605.7,3605.1,0.655]
[1762832781293,2.7744522,3605.7,3605.1,0.655]
[1762832781681,0.001,3605.7,3605.1,0.655]
[1762832781867,0.4608,3605.6,3605.1,0.655]
[1762832782073,2.77361494,3605.5,3605.1,0.655]
[1762832782468,0.001,3605.7,3605.1,0.655]
[1762832782671,0.4678,3605.2,3605.1,0.655]
[1762832782905,3.24157121,3605.2,3604.2,0.3352]
[1762832783057,3.24157121,3605.2,3604.3,0.655]
[1762832783058,0.4608,3605.1,3604.3,0.655]
[1762832783587,2.77400444,3604.9,3604.3,0.655]
[1762832783792,0.4608,3605.1,3604.3,0.655]
[1762832783793,2.77394322,3605.0,3604.3,0.655]
[1762832784695,4.68913967,3605.7,3604.3,0.655]
[1762832784696,2.77410589,3604.8,3604.3,0.655]
[1762832784883,0.4678,3604.4,3604.3,0.655]
[1762832785605,0.4678,3604.4,3603.8,0.1357]
[1762832786904,2.77447418,3604.3,3603.7,0.655]
[1762832787207,3.70460043,3604.4,3603.7,0.655]
[1762832787405,3.23687967,3604.3,3603.7,0.655]
[1762832787610,2.77454263,3604.2,3603.7,0.655]
[1762832787919,2.77462835,3604.1,3603.7,0.655]
[1762832788131,0.4624,3604.4,3603.7,0.655]
[1762832788494,2.77444206,3604.4,3603.7,0.655]
[1762832789021,2.77446383,3604.3,3603.7,0.655]
[1762832789225,0.4624,3604.5,3603.7,0.655]
[1762832789422,2.77454248,3604.2,3603.7,0.655]
[1762832789779,2.77446383,3604.3,3603.7,0.655]
[1762832790042,2.77457024,3604.2,3603.7,0.655]
[1762832790479,0.655,3604.7,3603.7,0.655]
[1762832790480,0.4824,3603.8,3603.7,0.655]
[1762832790792,1.259712,3604.6,3603.1,0.3352]
[1762832790793,3.42855864,3604.2,3603.1,0.3352]
[1762832790986,2.77468631,3604.1,3603.1,3.11058129]
[1762832791319,2.77467293,3604.1,3603.1,3.11058129]
[1762832791515,2.7747267,3604.0,3603.1,3.11058129]
[1762832791843,2.77477824,3603.9,3603.1,3.11058129]
[1762832792139,2.77470638,3604.0,3603.1,3.11058129]
[1762832792334,2.77469478,3604.0,3603.0,0.654]
[1762832792636,0.4624,3603.9,3603.0,0.654]
[1762832792839,2.77484877,3603.8,3603.0,0.654]
[1762832793044,2.77494227,3603.7,3603.0,0.654]
[1762832793206,3.23719292,3603.9,3603.0,0.654]
[1762832793413,0.4624,3603.9,3603.0,0.654]
[1762832793720,3.23731878,3603.8,3603.0,0.654]
[1762832794508,3.23731878,3603.8,3603.0,3.42945513]
[1762832794747,0.4624,3603.8,3603.0,3.42945513]
[1762832794935,0.4624,3603.8,3603.0,0.654]
[1762832795140,0.4624,3603.8,3603.0,3.42945086]
[1762832795734,0.4624,3603.8,3603.0,0.654]
[1762832796306,6.07044226,3604.9,3603.7,0.3352]
[1762832796511,6.07044226,3604.9,3603.1,0.3352]
[1762832796512,2.7745987,3604.2,3603.5,0.654]
[1762832796827,3.23706157,3604.1,3603.5,0.654]
[1762832797022,0.4624,3604.1,3603.5,0.654]
[1762832797225,2.7745448,3604.2,3603.5,0.654]
[1762832797424,2.77447984,3604.3,3603.5,0.654]
[1762832797626,0.4624,3604.4,3603.5,0.654]
[1762832797835,1.259712,3604.2,3603.5,0.654]
[1762832798034,0.4624,3604.4,3603.5,3.42905441]
[1762832798237,3.23680977,3604.4,3603.5,3.42905441]
[1762832798828,4.5641384,3604.9,3603.5,0.654]
[1762832799134,3.23607534,3605.4,3604.8,0.3352]
[1762832799334,3.23607534,3605.4,3604.2,2.77446676]
[1762832799335,2.77377959,3605.2,3604.7,0.1357]
[1762832799539,3.23617959,3605.2,3604.7,0.1357]
[1762832799852,0.196,3605.3,3604.7,0.1357]
[1762832800077,0.78667646,3605.3,3604.7,0.1357]
[1762832800238,0.196,3605.3,3604.7,0.1357]
[1762832800432,0.196,3605.3,3604.7,2.90984656]
[1762832800639,3.23594984,3605.5,3604.7,0.1357]
[1762832800864,3.23596944,3605.5,3604.7,0.1357]
[1762832801065,0.4824,3604.8,3604.3,0.1357]
[1762832801250,3.45249347,3604.8,3604.2,0.654]
[1762832801451,3.91489347,3604.8,3604.2,0.654]
[1762832801761,0.6784,3604.8,3604.2,0.654]
[1762832802624,2.77393792,3605.0,3604.2,0.654]
[1762832803068,0.4624,3605.5,3604.4,2.77431942]
[1762832803241,2.77369494,3605.3,3604.4,2.77431942]
[1762832803867,2.77369494,3605.3,3604.5,2.77430666]
[1762832804168,2.77363875,3605.4,3604.5,2.77430666]
[1762832804461,2.77371133,3605.3,3604.5,2.77430666]
[1762832804668,1.259712,3605.6,3604.2,0.654]
[1762832804866,0.4624,3605.3,3604.2,0.654]
[1762832805082,0.001,3605.7,3604.5,3.6436628]
[1762832805232,0.001,3605.7,3604.5,2.77426593]
[1762832805433,0.4624,3605.6,3604.2,0.654]
[1762832805634,2.77372108,3605.3,3604.4,2.77437953]
[1762832805833,2.77354042,3605.5,3604.2,0.9892]
[1762832806054,0.4624,3605.5,3604.2,3.76370795]
[1762832806259,0.4624,3605.4,3604.2,0.9892]
[1762832806476,2.77374719,3605.3,3604.3,2.77446383]
[1762832806690,0.4624,3605.4,3604.2,0.654]
[1762832806896,2.77390855,3605.1,3604.2,0.654]
[1762832807093,2.77390855,3605.1,3604.2,3.42853342]
[1762832807270,0.4624,3605.1,3604.2,0.654]
[1762832807470,3.23625301,3605.1,3604.2,3.42846555]
[1762832807672,1.3957756,3605.7,3604.0,0.1357]
[1762832807871,0.4624,3605.0,3604.1,0.655]
[1762832808500,0.196,3604.9,3604.1,0.655]
[1762832808705,2.97001628,3604.9,3604.1,3.4296101]
[1762832808922,3.43241628,3604.9,3604.1,0.655]
[1762832809071,0.6584,3604.9,3604.1,0.655]
[1762832809271,0.4824,3604.2,3604.1,0.655]
[1762832809474,2.77468866,3604.1,3603.4,0.655]
[1762832809716,2.77461647,3604.2,3603.4,0.655]
[1762832809915,1.913712,3604.6,3603.0,0.002]
[1762832809916,0.4824,3603.5,3603.0,0.002]
[1762832810153,0.3324,3603.5,3603.0,0.657]
[1762832810782,0.7948,3603.5,3603.0,0.657]
[1762832811179,0.4624,3603.4,3603.0,0.657]
[1762832811612,0.4824,3603.1,3603.0,0.657]
[1762832811779,3.25778786,3603.1,3603.0,0.002]
[1762832812102,3.72018786,3603.1,3603.0,0.002]
[1762832812670,3.18104592,3602.9,3602.8,0.002]
[1762832812867,9.29757617,3602.9,3602.8,0.002]
[1762832813112,10.41697617,3602.9,3602.8,0.002]
[1762832813265,10.41697617,3602.9,3600.7,0.4852]
[1762832813266,1.722112,3602.8,3600.3,0.1357]
[1762832813465,11.4072306,3602.9,3600.9,3.6436628]
[1762832813466,0.73799626,3602.5,3600.9,3.6436628]
[1762832813802,2.69545446,3602.7,3601.2,0.405504]
[1762832813803,0.4624,3602.7,3601.2,0.405504]
[1762832814123,0.59066376,3602.8,3602.6,0.4548]
[1762832814271,0.4624,3603.3,3602.1,0.659]
[1762832814615,0.196,3603.5,3602.7,0.4548]
[1762832814769,1.2489608,3603.5,3602.7,0.4548]
[1762832814971,0.6584,3603.5,3602.8,2.77561896]
[1762832815165,0.196,3603.5,3602.7,0.4548]
[1762832815473,0.4911,3603.9,3602.9,2.77547229]
[1762832815474,1.750812,3603.9,3602.9,2.77547229]
[1762832815664,1.750812,3603.9,3603.0,2.77540388]
[1762832815879,1.750812,3603.9,3602.9,2.77553593]
[1762832815880,4.52559427,3603.9,3602.9,2.77553593]
[1762832816080,0.4607,3603.8,3602.9,2.77553593]
[1762832816323,0.4607,3603.8,3603.0,2.77546396]
[1762832816787,0.4607,3603.8,3602.9,2.9255402]
[1762832817172,0.4607,3603.8,3603.0,2.7754642]
[1762832817801,0.001,3603.5,3602.9,0.15]
[1762832818109,0.001,3603.5,3602.9,2.92549185]
[1762832818307,0.001,3603.5,3602.9,0.6049]
[1762832818524,0.001,3603.5,3603.4,2.77515679]
[1762832818673,0.001,3603.5,3603.4,0.658]
[1762832818983,0.001,3603.5,3603.4,4.37525679]
[1762832819188,0.001,3603.5,3603.4,3.92035679]
[1762832819396,0.001,3603.5,3603.4,4.37525679]
[1762832819571,0.001,3603.5,3603.4,5.63496879]
[1762832820084,0.001,3603.5,3603.4,6.04047279]
[1762832820485,0.001,3603.5,3603.4,14.68014691]
[1762832820783,0.001,3605.7,3604.4,0.405504]
[1762832821093,0.001,3605.7,3604.6,0.405504]
[1762832821448,0.001,3605.7,3605.6,0.5879]
[1762832821724,0.001,3605.7,3605.5,2.77353841]
[1762832821725,0.001,3605.7,3605.5,0.659]
[1762832822075,0.001,3605.7,3605.6,3.2606635]
[1762832822322,0.001,3605.7,3605.6,3.7155635]
[1762832822475,0.001,3605.7,3605.6,3.74329813]
[1762832822676,0.001,3605.7,3605.6,4.1210675]
[1762832822974,0.001,3605.7,3605.6,0.4872]
[1762832823206,0.001,3605.7,3605.6,0.659]
[1762832825316,0.001,3605.7,3605.6,1.1462]
[1762832825826,0.001,3605.7,3605.6,0.659]
[1762832828629,0.001,3605.7,3605.2,2.87445585]
[1762832828630,0.9373,3605.7,3605.4,0.658]
[1762832829718,0.3604,3605.5,3605.4,0.658]
[1762832829931,0.3604,3605.5,3604.7,1.259712]
[1762832830135,0.8211,3605.5,3604.8,0.658]
[1762832830738,2.7736503,3605.4,3604.8,0.658]
[1762832830935,0.8211,3605.5,3604.8,0.658]
[1762832831138,0.4756,3604.9,3604.8,0.658]
[1762832831445,0.001,3605.7,3604.9,0.4549]
[1762832831608,0.001,3605.7,3605.3,3.26087774]
[1762832831808,0.001,3605.7,3605.6,3.3613635]
[1762832832346,0.001,3605.7,3605.6,3.8162635]
[1762832832507,0.001,3605.7,3605.6,0.5879]
[1762832832723,0.4766,3605.7,3605.6,0.659]
[1762832832926,0.001,3605.7,3605.6,0.659]
[1762832833530,0.001,3605.7,3605.6,4.3745635]
[1762832834459,0.001,3605.7,3605.6,9.1124395]
[1762832834660,0.001,3605.7,3605.6,6.0397795]
[1762832835559,0.001,3605.7,3605.6,12.1799635]
[1762832835857,0.001,3605.7,3605.6,6.5397795]
[1762832837263,0.001,3605.7,3605.6,1.259712]
[1762832837433,0.001,3605.7,3605.6,5.1803755]
[1762832837756,0.001,3605.7,3605.6,5.6352755]
[1762832837958,0.001,3605.7,3605.6,5.1803755]
[1762832838161,0.001,3605.7,3605.6,5.6352755]
[1762832838674,0.001,3605.7,3605.6,6.0407795]
[1762832839232,0.001,3605.7,3605.6,9.99998062]
[1762832839441,0.001,3605.7,3605.6,15.56002662]
[1762832839643,0.001,3605.8,3605.7,4.93860258]
[1762832839936,0.001,3606.1,3606.0,4.93837185]
[1762832840164,0.001,3606.1,3606.0,6.08657185]
[1762832840378,0.001,3606.1,3606.0,20.35015697]
[1762832840585,0.001,3606.1,3606.0,21.84921297]
[1762832841283,0.001,3606.1,3606.0,22.16461297]
[1762832842188,0.001,3606.1,3606.0,27.72224597]
[1762832842753,0.001,3607.3,3606.7,3.67812162]
[1762832842954,0.001,3607.3,3606.7,11.02380362]
[1762832843163,0.001,3607.3,3606.7,6.53993362]
[1762832843382,0.001,3607.3,3606.7,13.05235362]
[1762832844359,0.001,3607.3,3606.7,17.28050762]
[1762832845156,0.001,3607.3,3606.7,12.42540862]
[1762832845359,0.001,3607.3,3606.7,11.28443362]
[1762832845709,0.001,3607.3,3606.7,9.03006562]
[1762832846255,0.001,3607.3,3606.7,10.29119262]
[1762832846757,0.001,3607.3,3606.7,9.63119262]
[1762832846959,0.001,3607.3,3606.7,8.73252262]
[1762832847469,0.001,3607.3,3606.7,14.88501662]
[1762832847675,0.001,3607.3,3606.7,13.25036662]
[1762832848397,0.001,3607.3,3606.7,20.06291562]
[1762832848987,0.001,3607.3,3606.7,17.54453162]
[1762832849393,0.001,3607.3,3606.7,13.69340662]
[1762832850388,0.001,3607.3,3606.7,18.65495262]
[1762832850760,1e-08,3607.2,3607.1,8.99102728]
[1762832850959,1e-08,3607.2,3607.1,10.12762728]
[1762832851196,1e-08,3607.2,3607.1,20.05874328]
[1762832851518,1e-08,3607.2,3607.1,16.98619128]
[1762832851693,1e-08,3607.2,3607.1,15.56354128]
[1762832852261,1e-08,3607.2,3607.1,15.61354128]
[1762832852481,1e-08,3607.2,3607.1,31.11632628]
[1762832852680,1e-08,3607.2,3607.1,18.94531928]
[1762832853065,1e-08,3607.2,3607.1,13.60819728]
[1762832853259,1e-08,3607.2,3607.1,7.49048516]
[1762832853497,1e-08,3607.2,3607.1,10.17731016]
[1762832854696,1e-08,3607.2,3607.1,20.95883516]
[1762832854871,1e-08,3607.2,3607.1,17.38219816]
[1762832855493,1e-08,3607.2,3607.1,22.58045216]
[1762832855894,1e-08,3607.2,3607.1,16.26050216]
[1762832856486,1e-08,3607.2,3607.1,19.68339116]
[1762832856811,1e-08,3607.2,3607.1,17.48961716]
[1762832857619,1e-08,3607.2,3607.1,21.24610216]
[1762832857823,1e-08,3607.2,3607.1,19.31582716]
[1762832858616,1e-08,3607.2,3607.1,6.54922616]
[1762832858923,1e-08,3607.2,3607.1,16.16204516]
[1762832859435,1e-08,3607.2,3607.1,10.35601716]
[1762832859587,1e-08,3607.2,3607.1,9.76101716]
[1762832859949,1e-08,3607.2,3607.1,16.18531016]
[1762832860782,1e-08,3607.2,3607.1,16.82979616]
[1762832860982,1e-08,3607.2,3607.1,16.02821216]
[1762832861210,1e-08,3607.2,3607.1,8.60274216]
[1762832861410,1e-08,3607.2,3607.1,8.71851516]
[1762832861783,1e-08,3607.2,3607.1,10.72072816]
[1762832862221,1e-08,3607.2,3607.1,9.79206316]
[1762832862430,1e-08,3607.2,3607.1,3.83481416]
[1762832862585,0.46890001,3607.2,3607.1,4.33481416]
[1762832862787,0.93270001,3607.2,3607.1,3.42931016]
[1762832863020,0.93270001,3607.2,3607.1,2.77231016]
[1762832863223,0.93270001,3607.2,3607.1,3.83481416]
[1762832863422,0.93270001,3607.2,3606.2,0.15]
[1762832863725,0.93270001,3607.2,3606.1,6.23227046]
[1762832863726,0.3472,3607.0,3606.9,2.77246388]
[1762832863937,0.811,3607.0,3606.9,4.68917588]
[1762832864735,0.811,3607.0,3606.3,0.5]
[1762832864897,0.4638,3606.9,3606.8,2.77251648]
[1762832865091,0.6629,3606.9,3606.8,3.42854075]
[1762832865419,1.1318,3606.9,3606.8,4.68825275]
[1762832865753,0.668,3606.9,3606.8,4.68825275]
[1762832866092,1e-08,3607.2,3607.1,2.77231016]
[1762832866337,1e-08,3607.2,3607.1,3.42831016]
[1762832866493,0.46890001,3607.2,3607.1,0.656]
[1762832866688,0.93270001,3607.2,3607.1,0.656]
[1762832867094,0.93270001,3607.2,3607.1,2.77231016]
[1762832867295,0.93270001,3607.2,3607.1,3.42931016]
[1762832867604,0.93270001,3607.2,3607.1,0.657]
[1762832867805,0.93270001,3607.2,3607.1,3.42931016]
[1762832868401,1.52409061,3607.2,3607.1,3.42931016]
[1762832870835,1.52409061,3607.2,3607.1,0.657]
[1762832871209,1.52409061,3607.2,3607.1,3.42931016]
[1762832871414,1e-08,3607.2,3607.1,3.42931016]
[1762832872415,1e-08,3607.2,3607.1,4.81291416]
[1762832872639,1e-08,3607.2,3607.1,3.83681416]
[1762832872940,1e-08,3607.2,3607.1,5.57262616]
[1762832873146,1e-08,3607.2,3607.1,6.07262616]
[1762832873951,1e-08,3607.2,3607.1,29.88160828]
[1762832874152,1e-08,3607.2,3607.1,12.21565328]
[1762832875023,1e-08,3607.2,3607.1,23.96953328]
[1762832875257,1e-08,3607.2,3607.1,20.03813428]
[1762832876047,1e-08,3607.2,3607.1,28.75892628]
[1762832876409,1e-08,3607.2,3607.1,25.31264728]
[1762832876615,1e-08,3607.2,3607.1,24.91902028]
[1762832877041,1e-08,3607.2,3607.1,30.71394663]
[1762832877625,1e-08,3607.2,3607.1,29.96875563]
[1762832878032,1e-08,3607.2,3607.1,33.16702163]
[1762832878240,1e-08,3607.2,3607.1,32.87319063]
[1762832878637,1e-08,3607.2,3607.1,30.76554963]
[1762832878834,0.6652,3608.9,3608.2,0.5]
[1762832879033,0.6652,3608.9,3608.8,2.77100421]
[1762832879258,0.6652,3608.9,3608.8,3.42800421]
[1762832879444,1.1282,3608.9,3608.8,3.42800421]
[1762832880461,0.4693,3609.3,3609.2,2.7706971]
[1762832880764,0.1959,3609.8,3609.7,2.77031332]
[1762832880928,0.1959,3609.8,3609.7,3.42731332]
[1762832881122,0.6589,3609.8,3609.7,3.42731332]
[1762832881327,1.1282,3609.8,3609.7,3.42731332]
[1762832881603,1.1282,3609.8,3608.3,2.82134937]
[1762832881604,1.1282,3609.8,3609.1,2.77075137]
[1762832881763,0.4693,3609.7,3609.2,0.657]
[1762832881963,0.4693,3609.7,3609.5,2.77040264]
[1762832882259,0.4693,3609.7,3609.6,3.42739007]
[1762832882668,0.9323,3609.7,3609.6,3.42739007]
[1762832883239,0.463,3609.7,3609.6,3.42739007]
[1762832883447,0.463,3609.7,3609.6,3.83289407]
[1762832884167,0.9323,3609.7,3609.6,3.42739007]
[1762832885684,0.9323,3609.7,3609.6,2.77039007]
[1762832885870,0.9323,3609.7,3609.6,0.657]
[1762832886186,0.9323,3609.7,3608.9,2.77092742]
[1762832886480,0.4693,3609.6,3609.5,2.77046682]
[1762832886681,0.4693,3609.6,3609.5,3.42746682]
[1762832886846,0.9323,3609.6,3609.5,3.42746682]
[1762832888973,0.463,3609.6,3609.5,3.42746682]
[1762832889980,0.9323,3609.6,3609.5,0.656]
[1762832890184,0.9323,3609.6,3609.5,3.42646682]
[1762832890549,0.463,3609.6,3609.5,3.42646682]
[1762832890785,0.9323,3609.6,3609.5,3.42646682]
[1762832890967,0.001,3609.7,3609.6,2.77039007]
[1762832891370,0.001,3609.7,3609.6,3.17589407]
[1762832891562,0.001,3609.7,3609.6,4.93560607]
[1762832891881,0.001,3609.7,3609.6,5.41550607]
[1762832892190,0.001,3609.7,3609.6,4.93560607]
[1762832892487,0.001,3609.7,3609.6,12.20732297]
[1762832892705,0.001,3609.7,3609.6,5.41550607]
[1762832892992,0.464,3609.7,3609.6,4.43560607]
[1762832893153,0.464,3609.7,3609.6,5.09160607]
[1762832893802,0.464,3609.7,3609.6,4.43560607]
[1762832894085,0.464,3609.7,3609.6,5.09160607]
[1762832895350,0.9333,3609.7,3609.6,4.03010207]
[1762832895683,0.9333,3609.7,3609.6,4.68510207]
[1762832896087,0.464,3609.7,3609.6,4.68510207]
[1762832896619,0.9333,3609.7,3609.6,4.68510207]
[1762832896796,0.001,3609.7,3609.6,5.11830997]
[1762832896976,0.001,3609.7,3609.6,6.07050607]
[1762832897290,0.464,3609.7,3609.6,5.09060607]
[1762832897491,0.001,3609.7,3609.6,5.09060607]
[1762832900079,0.464,3609.7,3609.6,5.09060607]
[1762832901528,0.9333,3609.7,3609.6,4.68410207]
[1762832902117,0.9333,3609.7,3609.6,4.03010207]
[1762832902273,0.9333,3609.7,3609.6,1.913712]
[1762832902487,0.9333,3609.7,3609.5,2.77040288]
[1762832902717,0.9333,3609.7,3608.4,0.1095]
[1762832902718,0.8097,3609.6,3608.8,0.5]
[1762832902921,0.8097,3609.6,3608.9,0.654]
[1762832902922,0.4618,3609.1,3608.9,0.654]
[1762832903078,0.4618,3609.1,3609.0,2.77085065]
[1762832903274,0.9311,3609.1,3609.0,4.68456265]
[1762832903587,0.4618,3609.1,3609.0,5.09006665]
[1762832903792,0.4693,3609.5,3609.4,2.77054358]
[1762832903983,0.4693,3609.5,3609.4,3.42454358]
[1762832904191,0.9323,3609.5,3609.4,3.42454358]
[1762832904878,0.9323,3609.5,3609.4,3.45224901]
[1762832904879,0.463,3609.5,3609.4,3.45224901]
[1762832905106,0.001,3609.7,3609.6,2.77039007]
[1762832905286,0.001,3609.7,3609.6,3.65579407]
[1762832905684,0.001,3609.7,3609.6,5.90270607]
[1762832905984,0.001,3609.7,3609.6,5.41550607]
[1762832906194,0.001,3609.7,3609.6,5.90270607]
[1762832906778,0.465,3609.7,3609.6,4.03010207]
[1762832907000,0.001,3609.7,3609.6,6.06520607]
[1762832908910,0.001,3609.7,3608.7,0.05]
[1762832908911,0.945,3609.7,3608.4,0.1095]
[1762832909142,0.945,3609.7,3608.0,1.97739731]
[1762832909143,0.3369,3609.5,3608.0,0.002]
[1762832909278,0.481,3609.7,3608.5,2.7711752]
[1762832909279,0.59303511,3609.4,3608.5,2.7711752]
[1762832909479,0.464,3608.1,3608.0,0.002]
[1762832909680,0.464,3608.1,3608.0,3.42761862]
[1762832909906,0.464,3608.1,3608.0,5.09283462]
[1762832910510,0.944,3608.1,3608.0,2.77361862]
[1762832910712,0.944,3608.1,3608.0,3.42761862]
[1762832911912,0.944,3608.1,3608.0,0.656]
[1762832912102,0.1684,3608.3,3608.0,3.42761862]
[1762832912308,0.944,3608.1,3608.0,3.42761862]
[1762832912622,0.464,3608.1,3608.0,3.42761862]
[1762832912912,0.944,3608.1,3608.0,3.42761862]
[1762832913915,0.944,3608.1,3608.0,0.002]
[1762832914420,3.7155418,3608.1,3608.0,0.002]
[1762832915125,0.944,3608.1,3608.0,0.002]
[1762832916097,3.7155418,3608.1,3608.0,0.002]
[1762832916507,0.944,3608.1,3608.0,0.002]
[1762832917228,0.464,3608.1,3608.0,0.002]
[1762832917446,0.1684,3608.3,3608.0,0.002]
[1762832917590,0.6484,3608.3,3608.1,0.654]
[1762832917939,0.6484,3608.3,3608.2,2.77146499]
[1762832918286,1.1124,3608.3,3608.2,2.77146499]
[1762832918692,1.1124,3608.3,3608.1,0.654]
[1762832918991,0.3912,3608.2,3608.1,3.4255418]
[1762832919736,0.1684,3608.3,3608.2,2.77146499]
[1762832920118,0.6324,3608.3,3608.2,2.77146499]
[1762832920437,0.464,3608.3,3608.2,2.77146499]
[1762832920621,0.48,3608.7,3608.4,2.77131138]
[1762832920830,0.1684,3609.0,3608.6,2.77115778]
[1762832921127,0.001,3609.7,3609.0,2.77078957]
[1762832921290,0.48,3609.4,3609.1,0.654]
[1762832921494,0.48,3609.4,3609.2,2.77069353]
[1762832921945,0.464,3609.3,3609.2,2.77069353]
[1762832922291,0.944,3609.3,3609.1,0.654]
[1762832922627,0.481,3609.7,3609.3,2.77059937]
[1762832922799,0.481,3609.7,3609.4,2.77047828]
[1762832923014,0.464,3609.5,3609.4,2.77047828]
[1762832923206,0.001,3609.7,3609.5,3.42443401]
[1762832923399,0.481,3609.7,3609.6,2.77039007]
[1762832923599,0.464,3609.6,3609.5,3.42444203]
[1762832924429,0.464,3609.6,3609.5,0.654]
[1762832924430,0.944,3609.6,3609.5,0.654]
[1762832924726,0.944,3609.6,3609.5,3.42446682]
[1762832925588,0.464,3609.6,3609.5,3.42446682]
[1762832925792,0.001,3609.7,3609.6,2.77039007]
[1762832926231,0.465,3609.7,3609.5,0.654]
[1762832926529,0.001,3609.7,3609.6,2.77039007]
[1762832926828,0.481,3609.7,3609.6,2.77039007]
[1762832927234,0.895,3609.7,3609.5,0.654]
[1762832927407,0.3529,3609.6,3609.5,0.654]
[1762832927988,0.3529,3609.6,3609.4,2.77053647]
[1762832928193,0.3529,3609.6,3609.5,3.42346682]
[1762832929295,0.1888,3609.9,3609.6,2.77039007]
[1762832929494,0.464,3609.6,3609.5,0.653]
[1762832929801,0.464,3609.6,3609.5,3.42346682]
[1762832930203,0.944,3609.6,3609.5,0.653]
[1762832930604,3.71440279,3609.6,3608.0,2.77357742]
[1762832930924,0.3044,3609.2,3608.6,2.77108786]
[1762832931106,0.3044,3609.2,3608.0,0.002]
[1762832931310,0.48,3609.1,3608.6,2.77114795]
[1762832931509,0.48,3609.1,3608.7,0.653]
[1762832931709,0.48,3609.1,3608.8,0.653]
[1762832931908,0.48,3609.1,3609.0,2.77085065]
[1762832932108,0.48,3609.4,3608.8,0.653]
[1762832932519,0.48,3609.4,3609.0,2.77084858]
[1762832932720,2.7703244,3609.7,3608.8,0.653]